{"text_format":"1","workbook":"xlsx","n_sheets":8,"sheets":["Disclaimer","Cortec","Configurator","Master Text","Documents","BOM","Database","Date Drivers"],"not_rendered":{"charts":0,"images":0,"macros":1,"external_links":1,"defined_names":1,"comments":0,"pivot_tables":0},"unopened":[],"bounds":{"document_bytes":16777216,"sheet_cells":100000,"rows_first":2000,"rows_last":500,"rows_between":2000,"halvings":0,"cell_chars":16384,"cell_head_chars":4096},"cells_cut":0,"cells_raw":0,"read":"whole","date_system":"1900"}

{"sheet":"Disclaimer","index":0,"n_rows":6,"n_cols":2,"rows_kept":6,"cut":false,"hidden":false,"merged":[[2,1,2,9],[3,1,4,9],[5,1,7,9]]}
[]
[]
[null,"Our policy is one of continuous development. Accordingly the design of our products may change at any time. "]
[null,"Whilst every effort is made to produce up to date literature, this document should only be regarded as a guide and is intended for information purposes only."]
[]
[null,"Its contents do not constitute an offer for sale or advice on the application of any product referred to in it. We cannot be held responsible for any reliance on any decisions taken on its contents without specific advice."]

{"sheet":"Cortec","index":1,"n_rows":52,"n_cols":16,"rows_kept":52,"cut":false,"hidden":false,"merged":[[3,0,3,1],[4,0,4,1]]}
["Information required with order:"]
[]
["Variants",null,"Order Number"]
["P59_ Differential Current Communications Interface",null,null,"1 - 3",4,5,6,7,8,9,10,11,12,13,14,15]
["(for use with Current Differential Relays)",null,null,"P59"]
["G.703 Interface",null,null,null,1]
["V.35 Interface",null," withdrawn",null,2]
["X.21 Interface",null,null,null,3]
[]
["Vx Auxiliary Rating"]
["19 - 300 Vdc ",null,null,null,null,6]
[]
["Inom =  Not Applicable",null,null,null,null,null,0]
[]
["Protection Relay Protocol Options"]
["Standard - 64kbps",null,null,null,null,null,null,1]
["Standard - 2Mbps",null,null,null,null,null,null,2]
["IEEE C37.94 - Up to 2Mbps",null,null,null,null,null,null,3]
[]
["Product Specific = None",null,null,null,null,null,null,null,"A"]
[]
["Protocol Options = Not Applicable",null,null,null,null,null,null,null,null,0]
[]
["Mounting"]
["Flush Rack/Panel with Harsh Environmental Coating",null,null,null,null,null,null,null,null,null,"M"]
["Flush Rack/Panel with Harsh Environmental Coating",null,null,null,null,null,null,null,null,null,"M"]
[]
["Language:"]
["Multi-lingual",null,null,null,null,null,null,null,null,null,null,0]
["(Internationally Recognised Symbols)"]
["Without guidance interface (InterMiCOM Interface)"]
["With guidance interface (InterMiCOM Interface)"]
["For connection to wire, RS485, isolated"]
["For connection to plastic fibre, FSMA connector"]
["For connection to glass fibre, ST connector"]
[]
["Software"]
["Standard - 64 kbps (G.703, V.35 or X.21)",null,null,null,null,null,null,null,null,null,null,null,0,0]
["Standard - 2 Mbps (G.703)",null,null,null,null,null,null,null,null,null,null,null,2,0]
["IEEE C37.94 - 2Mbps (G.703)",null,null,null,null,null,null,null,null,null,null,null,3,0]
["IEEE C37.94 - Up to 768 kbps (X.21)",null,null,null,null,null,null,null,null,null,null,null,4,0]
[]
["Setting Files"]
["Standard - (Not Applicable)",null,null,null,null,null,null,null,null,null,null,null,null,null,0]
[]
["Design Suffix"]
["Factory Defined"]
[null,null,null,null,null,null,null,null,null,null,null,null,null,null,null,"*"]
["Optional Extras:"]
["Only required when replacing a P593A with a P593B"]
["GN0613001 Adaptor cable (DB25 to DB15)"]
["GJ2028102 Blanking Plate"]

{"sheet":"Configurator","index":2,"n_rows":32,"n_cols":13,"rows_kept":32,"cut":false,"hidden":false,"merged":[[2,1,2,12],[0,0,0,11]]}
[]
["To enable only current variants to be offered, please specify ACTUAL or REQUIRED delivery date here"]
[null,"Format = dd/mm/yy (where d=day, m=month, y=year)"]
["Digit","1 - 3",4,5,6,7,8,9,10,11,"12 - 13",14,15]
["Differential Current Communications Interface","P59",{"$f":"B8","v":1},{"$f":"B10","v":6},0,{"$f":"$B$14","v":3},"A",0,{"$f":"B20","v":"M"},0,{"$f":"B24","v":"30"},0,{"$f":"B28","v":"B"}]
[]
["Variant"]
[null,{"$f":"VLOOKUP(Database!$C$1,Database!$B$2:$D$4,3)","v":1}]
["Nominal Vx Aux Rating :"]
["19 - 300 Vdc ",6]
["In / Vn Rating"]
["Not applicable",0]
["Hardware Options"]
[null,{"$f":"VLOOKUP(Database!$C$6,Database!$B$7:$D$9,3)","v":3}]
["Product Specific"]
["Standard Version","A"]
["Protocol Options:"]
["(see Variant)",0]
["Mounting:"]
[null,{"$f":"VLOOKUP(Database!$C$10,Database!$B$11:$D$12,3,FALSE)","v":"M"}]
["Language:"]
["Multi-lingual",0]
["Software:"]
[{"$f":"VLOOKUP($B$24,Database!$A$15:$D$17,3)","v":"IEEE C37.94 - 2Mbps (G.703)"},{"$f":"VLOOKUP(Database!$C$6,Database!$B$15:$D$17,3,FALSE)","v":"30"}]
["Setting Files:"]
["Standard - (Not Applicable)",0]
["Design Suffix:"]
["Factory Defined",{"$f":"HLOOKUP('Date Drivers'!$B$2,'Date Drivers'!$C$2:$E$17,8)","v":"B"}]
[{"$f":"IF(Database!$C$1=3,Database!$B$21,\"\")","v":""}]
[{"$f":"IF(Database!$C$1=3,Database!B18,\"\")","v":""}]
[{"$f":"IF(Database!$C$1=3,Database!C19,\"\")","v":""},{"$f":"IF(Database!$C$1=3,Database!D19,\"\")","v":""}]
[{"$f":"IF(Database!$C$1=3,Database!C20,\"\")","v":""},{"$f":"IF(Database!$C$1=3,Database!D20,\"\")","v":""}]

{"sheet":"Master Text","index":3,"n_rows":37,"n_cols":3,"rows_kept":37,"cut":false,"hidden":false,"merged":[]}
[{"$f":"CONCATENATE(Configurator!B5,Configurator!C5,Configurator!D5,Configurator!E5,Configurator!F5,Configurator!G5,Configurator!H5,Configurator!I5,Configurator!J5,Configurator!K5,Configurator!L5,Configurator!M5)","v":"P591603A0M0300B"}]
["Differential Current Communications Interface"]
["Interface Type :"]
[{"$f":"VLOOKUP(Database!$C$1,Database!$B$2:$D$4,2)","v":"G.703 Interface"}]
["Vx Aux Rating :"]
["19 - 300 Vdc "]
["Inom :"]
["19 - 300 Vdc "]
["Hardware Options :"]
[{"$f":"VLOOKUP(Database!$C$6,Database!$B$7:$D$9,2)","v":"IEEE C37.94 - Up to 2Mbps"}]
["Product Specific Options :"]
["None"]
["Protocol Options :"]
["None"]
["Mounting :"]
[{"$f":"VLOOKUP(Database!$C$10,Database!$B$11:$C$12,2,FALSE)","v":"Flush Rack/Panel with Harsh Environmental Coating"}]
["Languages  :"]
["Multi-lingual (Internationally Recognised Symbols)"]
["Software :"]
[{"$f":"VLOOKUP(Configurator!$B$24,Database!$A$15:$C$16,3)","v":"Standard - 2 Mbps (G.703)"}]
["Setting Files :"]
["Standard"]
["Design Suffix :"]
[{"$f":"HLOOKUP('Date Drivers'!$B$2,'Date Drivers'!$C$2:$E$17,8)","v":"B"}]
[]
[]
["Version :","A","Configurator derived from existing P591/2/3 - 15/04/09"]
[null,"B","BOM corrected following discussions with J Gardner - 21/04/09"]
[null,"C","Digit #10 was '1' in error; changed to 'M', Hardware option 2 for P591 made 'not yet available' - 26/07/10"]
[null,"D","Release of Harsh Environment coating option -see CID RPRI-8CYG5J - 13/01/2011"]
[null,"E","2mbps option released by CID RJWI-8MED3F - 10/10/2011"]
[null,"F","HEC errors corrected in line with SAP - 21/10/2011"]
[null,"G","GN0613001 Adaptor cable & GJ2028102 Blanking Plate added for P593B -CID PRTA-8TTT7T"]
[null,"H","Guidance on when to use adapter & cable added - 29/06/2012"]
[null,"I","As HEC is now standard for P59x products, HEC mounting options are withdrawn and \"with Harsh Environmental Coating\" added to standard mounting options descriptions, see CID MBAM-934JCF - 14/01/2013"]
[null,"J","Variant '2' Withdrawn CID005973  01/10/2019, GE Publication no GER-4861"]
[null,"K","Release of P591/3 New Product Variants with C37.94 protocol - CID005896 03/09/2022"]

{"sheet":"Documents","index":4,"n_rows":12,"n_cols":4,"rows_kept":12,"cut":false,"hidden":false,"merged":[[0,1,0,3]]}
[{"$f":"CONCATENATE(Configurator!B5,Configurator!C5,Configurator!D5,Configurator!E5,Configurator!F5,Configurator!G5,Configurator!H5,Configurator!I5,Configurator!J5,Configurator!K5,Configurator!L5,Configurator!M5)","v":"P591603A0M0300B"},"Documents"]
[]
[]
["Wiring / Circuit Diagram",":",{"$f":"VLOOKUP(Database!$C$1,Database!$B$2:$K$4,8)","v":"20P59101"}]
[]
["Outline",":",{"$f":"VLOOKUP(Database!$C$1,Database!$B$2:$K$4,9)","v":"GN0048 sht 1"}]
[]
["Customer Diagram",":",{"$f":"VLOOKUP(Database!$C$1,Database!$B$2:$K$4,10)","v":"10P59102 sht 1"}]
[]
[]
["Version ",":","A","Original - 15/04/09"]
[null,null,"B","Variables added (all variants were 20P59001 sht 1, GN0??? SHT 1 and 10P591001 SHT 1) - 26/07/10"]

{"sheet":"BOM","index":5,"n_rows":17,"n_cols":18,"rows_kept":17,"cut":false,"hidden":false,"merged":[[0,1,0,11]]}
["PCS MATERIAL MASTER","Requirements Key(s) / # of digit in model number",null,null,null,null,null,null,null,null,null,null,"Requirements Keys","Attribute Keys","NUMBER","DESCRIPTION","Qty.","Qty. Required"]
[{"$f":"CONCATENATE(Configurator!B5,Configurator!C5,Configurator!D5,Configurator!E5,Configurator!F5,Configurator!G5,Configurator!H5,Configurator!I5,Configurator!J5,Configurator!K5,Configurator!L5,Configurator!M5)","v":"P591603A0M0300B"},4,5,6,7,8,9,10,11,"12 -13",14,15]
[null,{"$f":"MID($A$2,4,1)","v":"1"},null,null,null,null,null,{"$f":"MID($A$2,10,1)","v":"M"},null,null,null,null,{"$f":"B3&H3","v":"1M"},"1M","GN0433001","G.703 COMMON PARTS",1,{"$f":"IF(M3=N3,Q3,\"\")","v":1}]
[null,"1",null,null,null,null,null,{"$f":"MID($A$2,10,1)","v":"M"},null,null,null,null,"1M","3M","GN0434001","X.21 COMMON PARTS",1,""]
[null,"1",null,null,null,null,null,"M",null,null,null,null,"1M","2M","GN0435001","V.35 COMMON PARTS",1,""]
[null,"1",null,null,null,null,null,{"$f":"MID($A$2,10,1)","v":"M"},null,null,null,null,"1M","1P","GN0433001C","G.703 COMMON PARTS",1,""]
[null,"1",null,null,null,null,null,"M",null,null,null,null,"1M","3P","GN0434001C","X.21 COMMON PARTS",1,""]
[null,"1",null,null,null,null,null,"M",null,null,null,null,"1M","2P","GN0435001C","V.35 COMMON PARTS",1,""]
[null,"1",null,null,{"$f":"MID($A$2,7,1)","v":"3"},null,null,"M",null,null,null,null,{"$f":"CONCATENATE(B9,E9,H9)","v":"13M"},"11M","ZN0059001","MAIN BOARD G703 up to 64 kbps",1,""]
[null,"1",null,null,{"$f":"MID($A$2,7,1)","v":"3"},null,null,"M",null,null,null,null,{"$f":"CONCATENATE(B10,E10,H10)","v":"13M"},"12M","ZN0059004","MAIN BOARD G703 up to 2Mbps",1,""]
[null,"1",null,null,{"$f":"MID($A$2,7,1)","v":"3"},null,null,"M",null,null,null,null,{"$f":"CONCATENATE(B11,E11,H11)","v":"13M"},"11P","ZN0059001C","MAIN BOARD G703 up to 64 kbps",1,""]
[null,"1",null,null,{"$f":"MID($A$2,7,1)","v":"3"},null,null,null,null,null,null,null,{"$f":"CONCATENATE(B12,E12)","v":"13"},"11M","ZN0059001","MAIN BOARD G703 up to 64 kbps",1,{"$f":"IF(M12=N12,Q12,\"\")","v":""}]
[null,"1",null,null,"3",null,null,null,null,null,null,null,{"$f":"CONCATENATE(B13,E13)","v":"13"},"13","ZN0059005","MAIN BOARD IEE C37.94",1,{"$f":"IF(M13=N13,Q13,\"\")","v":1}]
[null,"1",null,null,"3",null,null,null,null,null,null,null,{"$f":"CONCATENATE(B14,E14)","v":"13"},"31","ZN0059003","Main board X.21(P593)",1,{"$f":"IF(M14=N14,Q14,\"\")","v":""}]
[null,"1",null,null,"3",null,null,null,null,null,null,null,{"$f":"CONCATENATE(B15,E15)","v":"13"},"33","ZN0059006","MAIN BOARD IEE C37.94",1,{"$f":"IF(M15=N15,Q15,\"\")","v":""}]
[null,"1",null,null,{"$f":"MID($A$2,7,1)","v":"3"},null,null,"M",null,null,null,null,{"$f":"CONCATENATE(B16,E16,H16)","v":"13M"},"12P","ZN0059004C","MAIN BOARD G703 up to 2Mbps",1,""]
[null,null,null,null,null,null,null,null,null,null,null,null," "," ",null,null,null,1]

{"sheet":"Database","index":6,"n_rows":22,"n_cols":13,"rows_kept":22,"cut":false,"hidden":true,"merged":[]}
[null,"Interface Option",1]
[null,1,{"$f":"HLOOKUP('Date Drivers'!$B$2,'Date Drivers'!$C$2:$E$16,2)","v":"G.703 Interface"},{"$f":"HLOOKUP('Date Drivers'!$B$2,'Date Drivers'!$C$2:$E$16,5)","v":1},{"$f":"HLOOKUP('Date Drivers'!$B$2,'Date Drivers'!$C$2:$E$16,9)","v":"Standard - 64kbps"},{"$f":"HLOOKUP('Date Drivers'!$B$2,'Date Drivers'!$C$2:$E$16,10)","v":"Standard - 2Mbps"},{"$f":"HLOOKUP('Date Drivers'!$B$2,'Date Drivers'!$C$2:$E$16,11)","v":1},{"$f":"HLOOKUP('Date Drivers'!$B$2,'Date Drivers'!$C$2:$E$16,12)","v":"2"},{"$f":"HLOOKUP('Date Drivers'!$B$2,'Date Drivers'!$C$2:$E$22,13)","v":"20P59101"},{"$f":"HLOOKUP('Date Drivers'!$B$2,'Date Drivers'!$C$2:$E$22,16)","v":"GN0048 sht 1"},{"$f":"HLOOKUP('Date Drivers'!$B$2,'Date Drivers'!$C$2:$E$22,17)","v":"10P59102 sht 1"},{"$f":"HLOOKUP('Date Drivers'!$B$2,'Date Drivers'!$C$2:$E$50,39)","v":"IEEE C37.94 - Up to 2Mbps"},{"$f":"HLOOKUP('Date Drivers'!$B$2,'Date Drivers'!$C$2:$E$50,40)","v":3}]
[null,2,{"$f":"HLOOKUP('Date Drivers'!$B$2,'Date Drivers'!$C$2:$E$16,3)","v":"V.35 Interface (withdrawn)"},{"$f":"HLOOKUP('Date Drivers'!$B$2,'Date Drivers'!$C$2:$E$16,6)","v":"*"},"Not applicable"," ",1,1,{"$f":"HLOOKUP('Date Drivers'!$B$2,'Date Drivers'!$C$2:$E$22,14)","v":"20P59201"},{"$f":"HLOOKUP('Date Drivers'!$B$2,'Date Drivers'!$C$2:$E$22,16)","v":"GN0048 sht 1"},{"$f":"CONCATENATE(HLOOKUP('Date Drivers'!$B$2,'Date Drivers'!$C$2:$E$22,18),\"/\",HLOOKUP('Date Drivers'!$B$2,'Date Drivers'!$C$2:$E$22,19))","v":"10P59202 sht 1/10P59202 sht 2"}," ","1"]
[null,3,{"$f":"HLOOKUP('Date Drivers'!$B$2,'Date Drivers'!$C$2:$E$16,4)","v":"X.21 Interface"},{"$f":"HLOOKUP('Date Drivers'!$B$2,'Date Drivers'!$C$2:$E$16,7)","v":3},{"$f":"HLOOKUP('Date Drivers'!$B$2,'Date Drivers'!$C$2:$E$16,9)","v":"Standard - 64kbps"},{"$f":"H16","v":"IEEE C37.94 - Up to 768 kbps (X.21)"},1,{"$f":"HLOOKUP('Date Drivers'!$B$2,'Date Drivers'!$C$2:$E$50,40)","v":3},{"$f":"HLOOKUP('Date Drivers'!$B$2,'Date Drivers'!$C$2:$E$22,15)","v":"20P59301"},{"$f":"HLOOKUP('Date Drivers'!$B$2,'Date Drivers'!$C$2:$E$22,16)","v":"GN0048 sht 1"},{"$f":"CONCATENATE(HLOOKUP('Date Drivers'!$B$2,'Date Drivers'!$C$2:$E$22,20),\"/\",HLOOKUP('Date Drivers'!$B$2,'Date Drivers'!$C$2:$E$22,21))","v":"10P59302 sht 1/10P59302 sht 2"}," ",{"$f":"HLOOKUP('Date Drivers'!$B$2,'Date Drivers'!$C$2:$E$50,40)","v":3}]
[]
[null,"Hardware Option",3]
[null,1,{"$f":"VLOOKUP($C$1,$B$2:$H$4,4)","v":"Standard - 64kbps"},{"$f":"VLOOKUP($C$1,$B$2:$H$4,6)","v":1}]
[null,2,{"$f":"VLOOKUP($C$1,$B$2:$H$4,5)","v":"Standard - 2Mbps"},{"$f":"VLOOKUP($C$1,$B$2:$H$4,7)","v":"2"}]
[null,3,{"$f":"VLOOKUP($C$1,$B$2:$M$4,11)","v":"IEEE C37.94 - Up to 2Mbps"},{"$f":"VLOOKUP($C$1,$B$2:$M$4,12)","v":3}]
[null,"Mounting Options",1]
[null,1,{"$f":"HLOOKUP('Date Drivers'!$B$2,'Date Drivers'!$C$2:$E$26,22)","v":"Flush Rack/Panel with Harsh Environmental Coating"},{"$f":"HLOOKUP('Date Drivers'!$B$2,'Date Drivers'!$C$2:$E$26,24)","v":"M"}]
[null,2,{"$f":"HLOOKUP('Date Drivers'!$B$2,'Date Drivers'!$C$2:$E$26,23)","v":"Flush Rack/Panel with harsh environmental coating"},{"$f":"HLOOKUP('Date Drivers'!$B$2,'Date Drivers'!$C$2:$E$26,25)","v":"P"}]
[]
[null,"Mounting Options",1,null,null,1,2,3,1,2,3]
[{"$f":"HLOOKUP($C$1,$I$14:$K$17,2)","v":"00"},1,{"$f":"HLOOKUP($C$1,$F$14:$G$17,2)","v":"Standard - 64 kbps (G.703, V.35 or X.21)"},{"$f":"HLOOKUP($C$1,$I$14:$K$17,2)","v":"00"},null,{"$f":"HLOOKUP('Date Drivers'!$B$2,'Date Drivers'!$C$2:$E$36,26)","v":"Standard - 64 kbps (G.703, V.35 or X.21)"},{"$f":"HLOOKUP('Date Drivers'!$B$2,'Date Drivers'!$C$2:$E$36,30)","v":"Standard - 64 kbps (G.703, V.35 or X.21)"},{"$f":"HLOOKUP('Date Drivers'!$B$2,'Date Drivers'!$C$2:$E$36,30)","v":"Standard - 64 kbps (G.703, V.35 or X.21)"},{"$f":"HLOOKUP('Date Drivers'!$B$2,'Date Drivers'!$C$2:$E$36,28)","v":"00"},{"$f":"HLOOKUP('Date Drivers'!$B$2,'Date Drivers'!$C$2:$E$36,32)","v":"00"},{"$f":"HLOOKUP('Date Drivers'!$B$2,'Date Drivers'!$C$2:$E$36,32)","v":"00"}]
[{"$f":"HLOOKUP($C$1,$I$14:$K$17,3)","v":"20"},2,{"$f":"HLOOKUP($C$1,$F$14:$H$17,3)","v":"Standard - 2 Mbps (G.703)"},{"$f":"HLOOKUP($C$1,$I$14:$K$17,3)","v":"20"},null,{"$f":"HLOOKUP('Date Drivers'!$B$2,'Date Drivers'!$C$2:$E$36,27)","v":"Standard - 2 Mbps (G.703)"},{"$f":"HLOOKUP('Date Drivers'!$B$2,'Date Drivers'!$C$2:$E$36,30)","v":"Standard - 64 kbps (G.703, V.35 or X.21)"},{"$f":"HLOOKUP('Date Drivers'!$B$2,'Date Drivers'!$C$2:$E$50,44)","v":"IEEE C37.94 - Up to 768 kbps (X.21)"},{"$f":"HLOOKUP('Date Drivers'!$B$2,'Date Drivers'!$C$2:$E$36,29)","v":"20"},{"$f":"HLOOKUP('Date Drivers'!$B$2,'Date Drivers'!$C$2:$E$36,33)","v":"00"},{"$f":"HLOOKUP('Date Drivers'!$B$2,'Date Drivers'!$C$2:$E$55,43)","v":"40"}]
[{"$f":"HLOOKUP($C$1,$I$14:$K$17,4,FALSE)","v":"30"},3,{"$f":"HLOOKUP($C$1,$F$14:$H$17,4)","v":"IEEE C37.94 - 2Mbps (G.703)"},{"$f":"HLOOKUP($C$1,$I$14:$K$17,4)","v":"30"},null,{"$f":"HLOOKUP('Date Drivers'!$B$2,'Date Drivers'!$C$2:$E$50,41)","v":"IEEE C37.94 - 2Mbps (G.703)"},{"$f":"HLOOKUP('Date Drivers'!$B$2,'Date Drivers'!$C$2:$E$36,30)","v":"Standard - 64 kbps (G.703, V.35 or X.21)"},{"$f":"HLOOKUP('Date Drivers'!$B$2,'Date Drivers'!$C$2:$E$50,44)","v":"IEEE C37.94 - Up to 768 kbps (X.21)"},{"$f":"HLOOKUP('Date Drivers'!$B$2,'Date Drivers'!$C$2:$E$55,42)","v":"30"},{"$f":"HLOOKUP('Date Drivers'!$B$2,'Date Drivers'!$C$2:$E$36,33)","v":"00"},{"$f":"HLOOKUP('Date Drivers'!$B$2,'Date Drivers'!$C$2:$E$55,43)","v":"40"}]
[]
[null,{"$f":"'[1]Date Drivers'!A35","v":"Optional Extras: Order on a seperate line"}]
[null,null,{"$f":"HLOOKUP('[1]Date Drivers'!$B$2,'[1]Date Drivers'!$C$2:$H$38,34)","v":"P593 Adaptor Cable (DB25 to DB15)"},{"$f":"HLOOKUP('[1]Date Drivers'!$B$2,'[1]Date Drivers'!$C$2:$H$38,36)","v":"GN0613001"}]
[null,null,{"$f":"HLOOKUP('[1]Date Drivers'!$B$2,'[1]Date Drivers'!$C$2:$H$38,35)","v":"Blanking Plate"},{"$f":"HLOOKUP('[1]Date Drivers'!$B$2,'[1]Date Drivers'!$C$2:$H$38,37)","v":"GJ2028102"}]
[null,{"$f":"HLOOKUP('[1]Date Drivers'!$B$2,'[1]Date Drivers'!$C$2:$H$39,38)","v":"If replacing a P593 'A' Design Suffix by a 'B' consider …"}]

{"sheet":"Date Drivers","index":7,"n_rows":45,"n_cols":8,"rows_kept":45,"cut":false,"hidden":true,"merged":[]}
[null,"Key Date"]
[{"$f":"CONCATENATE(Configurator!B5,Configurator!C5,Configurator!D5,Configurator!E5,Configurator!F5,Configurator!G5,Configurator!H5,Configurator!I5,Configurator!J5,Configurator!K5,Configurator!L5,Configurator!M5)","v":"P591603A0M0300B"},{"$f":"IF(Configurator!$A$3=\"\",TODAY(),Configurator!A3)","v":"2022-09-03"},"2009-04-01","2010-07-26","2012-05-22","2012-06-28","2019-03-20",{"$f":"TODAY()","v":"2022-09-03"}]
["Type",null,"G.703 Interface","G.703 Interface","G.703 Interface","G.703 Interface","G.703 Interface","G.703 Interface"]
[null,null,"V.35 Interface (withdrawn)","V.35 Interface (withdrawn)","V.35 Interface (withdrawn)","V.35 Interface (withdrawn)","V.35 Interface","V.35 Interface (withdrawn)"]
[null,null,"X.21 Interface","X.21 Interface","X.21 Interface","X.21 Interface","X.21 Interface","X.21 Interface"]
[null,null,1,1,1,1,1,1]
[null,null,"*","*","*","*",2,"*"]
[null,null,3,3,3,3,3,3]
["Design Suffix",null,"B","B","B","B","B","B"]
["Hardware options",null,"Standard - 64kbps","Standard - 64kbps","Standard - 64kbps","Standard - 64kbps","Standard - 64kbps","Standard - 64kbps"]
[null,null,"Standard - 2Mbps","Standard - 2Mbps : not yet available","Standard - 2Mbps","Standard - 2Mbps","Standard - 2Mbps","Standard - 2Mbps"]
[null,null,1,1,1,1,1,1]
[null,null,2,"*","2","2","2","2"]
["Wiring / Circuit Diagram",null,"20P59001 sht 1","20P59101","20P59101","20P59101","20P59101","20P59101"]
[null,null,"20P59001 sht 1","20P59201","20P59201","20P59201","20P59201","20P59201"]
[null,null,"20P59001 sht 1","20P59301","20P59301","20P59301","20P59301","20P59301"]
["Outline",null,"GN0??? sht 1","GN0048 sht 1","GN0048 sht 1","GN0048 sht 1","GN0048 sht 1","GN0048 sht 1"]
["Customer Diagram",null,"10P591001 sht 1","10P59102 sht 1","10P59102 sht 1","10P59102 sht 1","10P59102 sht 1","10P59102 sht 1"]
[null,null,"10P591001 sht 1","10P59202 sht 1","10P59202 sht 1","10P59202 sht 1","10P59202 sht 1","10P59202 sht 1"]
[null,null,"10P591001 sht 1","10P59202 sht 2","10P59202 sht 2","10P59202 sht 2","10P59202 sht 2","10P59202 sht 2"]
[null,null,"10P591001 sht 1","10P59302 sht 1","10P59302 sht 1","10P59302 sht 1","10P59302 sht 1","10P59302 sht 1"]
[null,null,"10P591001 sht 1","10P59302 sht 2","10P59302 sht 2","10P59302 sht 2","10P59302 sht 2","10P59302 sht 2"]
["Mounting",null,"Flush Rack/Panel with Harsh Environmental Coating","Flush Rack/Panel with Harsh Environmental Coating","Flush Rack/Panel with Harsh Environmental Coating","Flush Rack/Panel with Harsh Environmental Coating","Flush Rack/Panel with Harsh Environmental Coating","Flush Rack/Panel with Harsh Environmental Coating"]
[null,null,null,"Flush Rack/Panel with harsh environmental coating","Flush Rack/Panel with harsh environmental coating","Flush Rack/Panel with harsh environmental coating","Flush Rack/Panel with harsh environmental coating","Flush Rack/Panel with harsh environmental coating"]
[null,null,"M","M","M","M","M","M"]
[null,null,null,"P","P","P","P","P"]
["Software",null,"Standard - 64 kbps (G.703, V.35 or X.21)","Standard - 64 kbps (G.703, V.35 or X.21)","Standard - 64 kbps (G.703, V.35 or X.21)","Standard - 64 kbps (G.703, V.35 or X.21)","Standard - 64 kbps (G.703, V.35 or X.21)","Standard - 64 kbps (G.703, V.35 or X.21)"]
[null,null,"Standard - 2 Mbps (G.703)","Standard - 2 Mbps (G.703)","Standard - 2 Mbps (G.703)","Standard - 2 Mbps (G.703)","Standard - 2 Mbps (G.703)","Standard - 2 Mbps (G.703)"]
[null,null,"00","00","00","00","00","00"]
[null,null,"20","20","20","20","20","20"]
[null,null,"Standard - 64 kbps (G.703, V.35 or X.21)","Standard - 64 kbps (G.703, V.35 or X.21)","Standard - 64 kbps (G.703, V.35 or X.21)","Standard - 64 kbps (G.703, V.35 or X.21)","Standard - 64 kbps (G.703, V.35 or X.21)","Standard - 64 kbps (G.703, V.35 or X.21)"]
[null,null," "," "," "," "," "," "]
[null,null,"00","00","00","00","00","00"]
[null,null,"00","00","00","00","00","00"]
["Optional Extras: Order on a seperate line",null," "," "," ","P593 Adaptor Cable (DB25 to DB15)","P593 Adaptor Cable (DB25 to DB15)","P593 Adaptor Cable (DB25 to DB15)"]
[null,null," "," "," ","Blanking Plate","Blanking Plate","Blanking Plate"]
[null,null," "," "," ","GN0613001","GN0613001","GN0613001"]
[null,null," "," "," ","GJ2028102","GJ2028102","GJ2028102"]
[null,null," "," "," "," ","If replacing a P593 'A' Design Suffix by a 'B' consider …","If replacing a P593 'A' Design Suffix by a 'B' consider …"]
[null,null,"IEEE C37.94 - Up to 2Mbps","IEEE C37.94 - Up to 2Mbps","IEEE C37.94 - Up to 2Mbps","IEEE C37.94 - Up to 2Mbps","IEEE C37.94 - Up to 2Mbps","IEEE C37.94 - Up to 2Mbps"]
[null,null,3,3,3,3,3,3]
[null,null,"IEEE C37.94 - 2Mbps (G.703)","IEEE C37.94 - 2Mbps (G.703)","IEEE C37.94 - 2Mbps (G.703)","IEEE C37.94 - 2Mbps (G.703)","IEEE C37.94 - 2Mbps (G.703)","IEEE C37.94 - 2Mbps (G.703)"]
[null,null,"30","30","30","30","30","30"]
[null,null,"40","40","40","40","40","40"]
[null,null,"IEEE C37.94 - Up to 768 kbps (X.21)","IEEE C37.94 - Up to 768 kbps (X.21)","IEEE C37.94 - Up to 768 kbps (X.21)","IEEE C37.94 - Up to 768 kbps (X.21)","IEEE C37.94 - Up to 768 kbps (X.21)","IEEE C37.94 - Up to 768 kbps (X.21)"]